[Event "9th HDBank Open 2019"]
[Site "Ho Chi Minh City"]
[Date "2019.03.08"]
[Round "3.20"]
[White "Vo, Thi Kim Phung"]
[Black "Mendonca, Leon Luke"]
[Result "0-1"]
[ECO "E32"]
[WhiteElo "2349"]
[BlackElo "2446"]
[Annotator "NA"]
[PlyCount "156"]
[EventDate "2019.03.07"]
[EventType "swiss"]
[EventCountry "VIE"]
[SourceTitle "playchess.com"]
[Source "ChessBase"]
[SourceQuality "1"]
[TimeControl "5400+30"]

1. d4 {[%emt 0:01:41]} Nf6 {[%emt 0:00:00]} 2. c4 {[%emt 0:00:15]} e6 {[%emt 0:00:00]} 3. Nc3 {[%emt 0:00:10]} Bb4 {[%emt 0:00:00]} 4. Qc2 {[%emt 0:00:10]} O-O {[%emt 0:00:00]} 5. Nf3 {[%emt 0:00:13]} d6 {[%emt 0:00:19]} 6. g3 {[%emt 0:04:13]} b6 {[%emt 0:03:24]} 7. Bg2 {[%emt 0:00:29]} Bb7 {[%emt 0:00:05]} 8. O-O {[%emt 0:00:19]} Nbd7 {[%emt 0:01:31]} 9. Nd1 {[%emt 0:07:17]} d5 {[%emt 0:05:05]} 10. c5 {[%emt 0:03:25]} bxc5 {[%emt 0:00:34]} 11. a3 {[%emt 0:00:44]} Ba5 {[%emt 0:00:09]} 12. dxc5 {[%emt 0:00:29]} c6 {[%emt 0:00:11]} 13. b4 {[%emt 0:00:44]} Bc7 {[%emt 0:00:05]} 14. Bb2 {[%emt 0:00:50]} Rc8 {[%emt 0:05:28]} 15. Nc3 {[%emt 0:01:03]} e5 {[%emt 0:01:35]} 16. Rfd1 {[%emt 0:03:02]} Bb8 {[%emt 0:17:24]} 17. Bh3 {[%emt 0:01:28]} Qe7 {[%emt 0:01:56]} 18. Nh4 {[%emt 0:00:28]} g6 {[%emt 0:00:56]} 19. e4 {[%emt 0:10:21]} d4 {[%emt 0:04:01]} 20. Na4 {[%emt 0:01:07]} Kg7 {[%emt 0:03:53]} 21. Bc1 {[%emt 0:03:50]} h6 {[%emt 0:00:30]} 22. Nb2 {[%emt 0:23:35]} Rcd8 {[%emt 0:00:34]} 23. f3 {[%emt 0:02:06]} Rh8 {[%emt 0:01:41]} 24. Nc4 {[%emt 0:00:28]} Nf8 {[%emt 0:01:18]} 25. Na5 {[%emt 0:00:35]} Ba8 {[%emt 0:01:13]} 26. a4 {[%emt 0:01:59]} Ne6 {[%emt 0:03:08]} 27. Ba3 {[%emt 0:00:26]} Ng5 {[%emt 0:00:59]} 28. Bf1 {[%emt 0:00:59]} Bc7 {[%emt 0:00:07]} 29. Nc4 {[%emt 0:03:15]} a6 {[%emt 0:05:19]} 30. Bd3 {[%emt 0:04:09]} Qe6 {[%emt 0:02:26]} 31. Qe2 {[%emt 0:02:06]} Bb7 {[%emt 0:00:34]} 32. Nd2 {[%emt 0:01:10]} Ra8 {[%emt 0:02:28]} 33. Bc4 {[%emt 0:00:48]} Qd7 {[%emt 0:01:10]} 34. Nf1 {[%emt 0:00:48]} Nh5 {[%emt 0:01:37]} 35. Bd3 {[%emt 0:01:59]} Nh3+ {[%emt 0:00:52]} 36. Kh1 {[%emt 0:00:12]} Rhe8 {[%emt 0:00:48]} 37. Bb2 {[%emt 0:02:26]} Qe7 {[%emt 0:00:41]} 38. Ng2 {[%emt 0:01:06]} a5 {[%emt 0:03:40]} 39. b5 {[%emt 0:02:05]} cxb5 {[%emt 0:02:43]} 40. Bxb5 {[%emt 0:00:07]} Qxc5 {[%emt 0:01:45]} 41. Rd3 {[%emt 0:04:57]} Red8 {[%emt 0:02:35]} 42. Nd2 {[%emt 0:01:04]} Qe7 {[%emt 0:01:16]} 43. Nb3 {[%emt 0:00:54]} Bd6 {[%emt 0:00:52]} 44. Bc1 {[%emt 0:01:59]} Bb4 {[%emt 0:02:01]} 45. Bd2 {[%emt 0:01:30]} Rdc8 {[%emt 0:03:37]} 46. Rb1 {[%emt 0:03:47]} Nf6 {[%emt 0:04:00]} 47. Rf1 {[%emt 0:01:46]} Bxd2 {[%emt 0:01:28]} 48. Nxd2 {[%emt 0:00:22]} Rc2 {[%emt 0:03:21]} 49. Rb3 {[%emt 0:02:51]} Rac8 {[%emt 0:04:01]} 50. Bd3 {[%emt 0:00:46]} Ra2 {[%emt 0:00:33]} 51. Rfb1 {[%emt 0:01:39]} Ba8 {[%emt 0:00:55]} 52. Ne1 {[%emt 0:00:27]} Rxa4 {[%emt 0:01:59]} 53. Rb6 {[%emt 0:00:55]} Ra2 {[%emt 0:01:46]} 54. Kg2 {[%emt 0:00:46]} Ng5 {[%emt 0:00:06]} 55. R6b2 {[%emt 0:00:30]} Rxb2 {[%emt 0:03:11]} 56. Rxb2 {[%emt 0:00:01]} Rc3 {[%emt 0:00:36]} 57. Rb5 {[%emt 0:00:27]} a4 {[%emt 0:01:27]} 58. h4 {[%emt 0:00:17]} Ne6 {[%emt 0:00:05]} 59. Nc4 {[%emt 0:00:48]} Nh5 {[%emt 0:01:20]} 60. Qd2 {[%emt 0:00:30]} Nc5 {[%emt 0:01:00]} 61. Nb6 {[%emt 0:00:39]} Bc6 {[%emt 0:00:46]} 62. Nd5 {[%emt 0:00:45]} Bxd5 {[%emt 0:00:29]} 63. exd5 {[%emt 0:00:02]} Qd7 {[%emt 0:00:38]} 64. Be2 {[%emt 0:00:27]} Qxd5 {[%emt 0:00:54]} 65. Nd3 {[%emt 0:00:26]} Qd6 {[%emt 0:01:08]} 66. Nxc5 {[%emt 0:01:04]} Rxc5 {[%emt 0:00:01]} 67. Qb4 {[%emt 0:00:13]} Rc6 {[%emt 0:00:37]} 68. Qxd6 {[%emt 0:00:12]} Rxd6 {[%emt 0:00:01]} 69. Rxe5 {[%emt 0:00:02]} Re6 {[%emt 0:00:36]} 70. f4 {[%emt 0:00:33]} Rxe5 {[%emt 0:00:10]} 71. fxe5 {[%emt 0:00:02]} a3 {[%emt 0:00:06]} 72. Bc4 {[%emt 0:00:07]} d3 {[%emt 0:00:07]} 73. Kf2 {[%emt 0:00:20]} Nxg3 {[%emt 0:00:07]} 74. Ke3 {[%emt 0:00:17]} Ne2 {[%emt 0:00:06]} 75. Kd2 {[%emt 0:01:12]} g5 {[%emt 0:00:05]} 76. hxg5 {[%emt 0:00:19]} hxg5 {[%emt 0:00:00]} 77. Ba2 {[%emt 0:01:30]} g4 {[%emt 0:00:10]} 78. Bd5 {[%emt 0:00:30]} g3 {[%emt 0:00:01]} 0-1

[Event "9th HDBank Open 2019"]
[Site "Ho Chi Minh City"]
[Date "2019.03.08"]
[Round "3.23"]
[White "Miciano, John Marvin"]
[Black "Tokhirjonova, Gulrukhbegim"]
[Result "1/2-1/2"]
[ECO "A00"]
[WhiteElo "2317"]
[BlackElo "2434"]
[Annotator "NA RC"]
[PlyCount "127"]
[EventDate "2019.03.07"]
[EventType "swiss"]
[EventCountry "VIE"]
[SourceTitle "playchess.com"]
[Source "ChessBase"]
[SourceQuality "1"]
[TimeControl "5400+30"]

1. g3 {[%emt 0:00:00]} d5 {[%emt 0:03:54]} 2. Bg2 {[%emt 0:00:00]} c6 {[%emt 0:00:45]} 3. Nf3 {[%emt 0:00:11]} Bg4 {[%emt 0:00:46]} 4. O-O {[%emt 0:00:57]} Nd7 {[%emt 0:00:15]} 5. d3 {[%emt 0:00:31]} Ngf6 {[%emt 0:00:16]} 6. c4 {[%emt 0:00:08]} e6 {[%emt 0:00:42]} 7. Be3 {[%emt 0:00:23]} Be7 {[%emt 0:02:45]} 8. Qb3 {[%emt 0:00:40]} Qc7 {[%emt 0:03:12]} 9. Nc3 {[%emt 0:02:57]} dxc4 {[%emt 0:02:09]} 10. dxc4 {[%emt 0:07:12]} O-O {[%emt 0:01:41]} 11. Rad1 {[%emt 0:06:22]} e5 {[%emt 0:02:03]} 12. h3 {[%emt 0:01:05]} Bxf3 {[%emt 0:08:07]} 13. Bxf3 {[%emt 0:00:55]} Bc5 {[%emt 0:00:46]} 14. Bc1 {[%emt 0:01:22]} Rfe8 {[%emt 0:01:13]} 15. Qc2 {[%emt 0:03:02]} Nf8 {[%emt 0:04:33]} 16. e3 {[%emt 0:04:13]} Qe7 {[%emt 0:02:07]} 17. Na4 {[%emt 0:03:04]} e4 {[%emt 0:03:02]} 18. Bg2 {[%emt 0:02:36]} N8d7 {[%emt 0:01:59]} 19. b3 {[%emt 0:02:33]} Bd6 {[%emt 0:02:34]} 20. Nc3 {[%emt 0:02:03]} Nc5 {[%emt 0:06:21]} 21. b4 {[%emt 0:03:30]} Nd3 {[%emt 0:06:55]} 22. Nxe4 {[%emt 0:09:37]} Nxb4 {[%emt 0:03:03]} 23. Nxf6+ {[%emt 0:02:57]} Qxf6 {[%emt 0:00:13]} 24. Qb1 {[%emt 0:06:43]} Qe7 {[%emt 0:02:22]} 25. Rd4 {[%emt 0:02:08]} Rad8 {[%emt 0:03:18]} 26. Re4 {[%emt 0:03:49]} Qd7 {[%emt 0:06:36]} 27. Rd1 {[%emt 0:00:59]} Qc7 {[%emt 0:00:56]} 28. Bb2 {[%emt 0:06:34]} Na6 {[%emt 0:03:17]} 29. Ba1 {[%emt 0:08:30]} Nc5 {[%emt 0:03:38]} 30. Rh4 {[%emt 0:01:25]} h6 {[%emt 0:01:37]} 31. Rhd4 {[%emt 0:02:54]} Bf8 {[%emt 0:04:40]} 32. Bf3 {[%emt 0:01:37]} Rd6 {[%emt 0:03:32]} 33. Kg2 {[%emt 0:00:46]} Red8 {[%emt 0:00:25]} 34. h4 {[%emt 0:01:27]} Ne6 {[%emt 0:00:34]} 35. Rxd6 {[%emt 0:00:37]} Rxd6 {[%emt 0:00:08]} 36. Rxd6 {[%emt 0:00:38]} Bxd6 {[%emt 0:01:56]} 37. Bg4 {[%emt 0:00:57]} Nc5 {[%emt 0:00:42]} 38. Bd4 {[%emt 0:00:54]} Qe7 {[%emt 0:02:50]} 39. Qf5 {[%emt 0:03:39]} Ne6 {[%emt 0:00:12]} 40. Bxa7 {[%emt 0:00:05]} b5 {[%emt 0:00:39]} 41. Bd4 {[%emt 0:01:58]} bxc4 {[%emt 0:08:19]} 42. Qc2 Nxd4 43. exd4 {[%emt 0:00:36]} Bc7 {[%emt 0:03:29]} 44. Qxc4 {[%emt 0:00:24]} Bb6 {[%emt 0:00:36]} 45. Bf3 {[%emt 0:00:58]} Qf6 {[%emt 0:00:21]} 46. Bxc6 {[%emt 0:00:12]} Bxd4 {[%emt 0:00:50]} 47. Bf3 g5 {[%emt 0:01:06]} 48. hxg5 {[%emt 0:00:36]} hxg5 {[%emt 0:00:01]} 49. a4 {[%emt 0:00:09]} Kg7 {[%emt 0:00:04]} 50. Qc2 {[%emt 0:00:39]} Qe5 {[%emt 0:00:24]} 51. Be4 {[%emt 0:00:24]} Bb6 {[%emt 0:02:01]} 52. Qd3 {[%emt 0:06:54]} Qd4 {[%emt 0:00:47]} 53. Qc2 {[%emt 0:00:39]} Qe5 {[%emt 0:00:01]} 54. Kf3 {[%emt 0:00:13]} Qf6+ {[%emt 0:00:25]} 55. Bf5 {[%emt 0:00:19]} Qd4 {[%emt 0:00:07]} 56. Be4 {[%emt 0:01:03]} Qf6+ {[%emt 0:00:01]} 57. Bf5 {[%emt 0:00:52]} Qd4 {[%emt 0:00:00]} 58. Qe2 {[%emt 0:01:20]} Kf6 {[%emt 0:00:42]} 59. Bc2 {[%emt 0:00:34]} Qd5+ {[%emt 0:00:52]} 60. Qe4 {[%emt 0:00:54]} Qxe4+ {[%emt 0:01:03]} 61. Bxe4 {[%emt 0:00:06]} Ke5 {[%emt 0:00:04]} 62. g4 {[%emt 0:00:13]} f6 {[%emt 0:00:05]} 63. Bf5 {[%emt 0:00:09]} Kd5 {[%emt 0:00:20]} 64. a5 {[%emt 0:00:07]} 1/2-1/2

[Event "9th HDBank Open 2019"]
[Site "Ho Chi Minh City"]
[Date "2019.03.08"]
[Round "3.24"]
[White "Arellano, Robert"]
[Black "Li, Yankai"]
[Result "0-1"]
[ECO "A46"]
[WhiteElo "2109"]
[BlackElo "2434"]
[Annotator "RC"]
[PlyCount "64"]
[EventDate "2019.03.07"]
[EventType "swiss"]
[EventCountry "VIE"]
[SourceTitle "playchess.com"]
[Source "ChessBase"]
[SourceQuality "1"]
[TimeControl "5400+30"]

1. d4 {[%emt 0:10:17]} Nf6 {[%emt 0:00:00]} 2. Nf3 {[%emt 0:02:32]} d5 {[%emt 0:01:04]} 3. g3 {[%emt 0:02:09]} g6 {[%emt 0:03:35]} 4. Bg2 {[%emt 0:01:04]} Bg7 {[%emt 0:00:03]} 5. O-O {[%emt 0:00:22]} O-O {[%emt 0:00:04]} 6. b3 {[%emt 0:01:41]} c5 {[%emt 0:01:20]} 7. Bb2 {[%emt 0:01:14]} cxd4 {[%emt 0:00:32]} 8. Bxd4 {[%emt 0:00:56]} Nc6 {[%emt 0:00:25]} 9. Bb2 {[%emt 0:00:13]} Qc7 {[%emt 0:04:15]} 10. Na3 {[%emt 0:05:53]} Rd8 {[%emt 0:14:27]} 11. Qc1 {[%emt 0:05:59]} e5 {[%emt 0:08:52]} 12. c4 {[%emt 0:12:04]} d4 {[%emt 0:06:26]} 13. c5 {[%emt 0:01:04]} Qe7 {[%emt 0:02:00]} 14. Nb5 {[%emt 0:27:57]} Ne4 {[%emt 0:08:27]} 15. Nh4 {[%emt 0:14:36]} Nxc5 {[%emt 0:04:11]} 16. Ba3 {[%emt 0:04:28]} Bf8 {[%emt 0:00:04]} 17. Nc7 {[%emt 0:00:51]} Qxc7 {[%emt 0:00:55]} 18. Bxc5 {[%emt 0:00:01]} Bg7 {[%emt 0:04:16]} 19. Qa3 {[%emt 0:05:09]} Bg4 {[%emt 0:02:12]} 20. Bf3 {[%emt 0:00:26]} Bxf3 {[%emt 0:00:41]} 21. exf3 {[%emt 0:00:01]} Qd7 {[%emt 0:01:27]} 22. Bb4 {[%emt 0:00:20]} Qd5 {[%emt 0:00:15]} 23. Rac1 {[%emt 0:00:51]} Bf6 {[%emt 0:01:41]} 24. Rc5 {[%emt 0:00:27]} Qd7 {[%emt 0:00:09]} 25. Rb5 {[%emt 0:00:56]} a6 {[%emt 0:04:25]} 26. Rb6 {[%emt 0:00:01]} Re8 {[%emt 0:00:06]} 27. Ng2 {[%emt 0:01:03]} Bd8 {[%emt 0:00:06]} 28. Bc5 {[%emt 0:00:24]} Bxb6 {[%emt 0:00:26]} 29. Bxb6 {[%emt 0:00:03]} Qd5 {[%emt 0:00:55]} 30. b4 {[%emt 0:00:21]} Qb5 {[%emt 0:00:45]} 31. Bc5 {[%emt 0:00:04]} b6 {[%emt 0:00:04]} 32. Bd6 {[%emt 0:01:22]} Rad8 {[%emt 0:00:10]} 0-1

[Event "9th HDBank Open 2019"]
[Site "Ho Chi Minh City"]
[Date "2019.03.08"]
[Round "3.25"]
[White "Zhao, Yuanhe"]
[Black "Tong, Thai Hung"]
[Result "1/2-1/2"]
[ECO "A08"]
[WhiteElo "2431"]
[BlackElo "2185"]
[Annotator "NA"]
[PlyCount "158"]
[EventDate "2019.03.07"]
[EventType "swiss"]
[EventCountry "VIE"]
[SourceTitle "playchess.com"]
[Source "ChessBase"]
[SourceQuality "1"]
[TimeControl "5400+30"]

1. Nf3 {[%emt 0:07:58]} d5 {[%emt 0:00:00]} 2. g3 {[%emt 0:00:21]} c5 {[%emt 0:00:00]} 3. Bg2 {[%emt 0:00:06]} Nf6 {[%emt 0:00:00]} 4. O-O {[%emt 0:00:27]} Nc6 {[%emt 0:02:15]} 5. d4 {[%emt 0:00:08]} cxd4 {[%emt 0:01:15]} 6. Nxd4 {[%emt 0:00:06]} Qb6 {[%emt 0:00:06]} 7. Nb3 {[%emt 0:01:20]} e6 {[%emt 0:00:24]} 8. N1d2 {[%emt 0:07:21]} Be7 {[%emt 0:01:27]} 9. e4 {[%emt 0:05:31]} O-O {[%emt 0:00:31]} 10. exd5 {[%emt 0:00:07]} exd5 {[%emt 0:00:44]} 11. Nf3 {[%emt 0:01:15]} Bg4 {[%emt 0:00:17]} 12. Be3 {[%emt 0:01:10]} Qc7 {[%emt 0:00:11]} 13. h3 {[%emt 0:00:54]} Bf5 {[%emt 0:01:16]} 14. c3 {[%emt 0:01:17]} h6 {[%emt 0:00:57]} 15. Re1 {[%emt 0:01:43]} Rfe8 {[%emt 0:01:14]} 16. a4 {[%emt 0:01:27]} Qd7 {[%emt 0:09:56]} 17. Kh2 {[%emt 0:01:16]} Ne4 {[%emt 0:00:11]} 18. a5 {[%emt 0:04:51]} a6 {[%emt 0:06:54]} 19. Nfd2 {[%emt 0:10:33]} Bd6 {[%emt 0:06:16]} 20. Bb6 {[%emt 0:14:32]} Ng5 {[%emt 0:11:14]} 21. h4 {[%emt 0:03:47]} Rxe1 {[%emt 0:00:19]} 22. Qxe1 {[%emt 0:00:06]} Re8 {[%emt 0:00:55]} 23. Qf1 {[%emt 0:04:03]} Ne4 {[%emt 0:01:01]} 24. Rd1 {[%emt 0:02:42]} Nf6 {[%emt 0:04:53]} 25. Nd4 {[%emt 0:01:10]} Nxd4 {[%emt 0:17:21]} 26. Bxd4 {[%emt 0:00:06]} Qe7 {[%emt 0:01:19]} 27. Kg1 {[%emt 0:02:59]} Ne4 {[%emt 0:03:23]} 28. Nxe4 {[%emt 0:03:14]} dxe4 {[%emt 0:00:44]} 29. Re1 {[%emt 0:02:17]} Qc7 {[%emt 0:02:18]} 30. Bb6 {[%emt 0:01:44]} Qc6 {[%emt 0:00:15]} 31. Re3 {[%emt 0:02:52]} Bg6 {[%emt 0:01:09]} 32. Qd1 {[%emt 0:03:47]} f5 {[%emt 0:04:02]} 33. Rd3 {[%emt 0:00:21]} Be5 {[%emt 0:03:34]} 34. Rd8 {[%emt 0:00:41]} Bf7 {[%emt 0:00:21]} 35. Qd2 {[%emt 0:01:53]} Rxd8 {[%emt 0:03:29]} 36. Qxd8+ {[%emt 0:00:52]} Qe8 {[%emt 0:00:04]} 37. Qd2 {[%emt 0:01:56]} Be6 {[%emt 0:00:18]} 38. Be3 {[%emt 0:04:27]} Qd7 {[%emt 0:00:24]} 39. Qxd7 {[%emt 0:02:04]} Bxd7 {[%emt 0:00:03]} 40. f4 {[%emt 0:00:46]} Bc7 {[%emt 0:04:44]} 41. b4 {[%emt 0:00:04]} Bb5 {[%emt 0:13:28]} 42. Bh3 {[%emt 0:00:06]} g6 {[%emt 0:00:01]} 43. h5 {[%emt 0:00:07]} Kf7 {[%emt 0:00:02]} 44. Kf2 {[%emt 0:00:18]} Bc4 {[%emt 0:01:12]} 45. Bd4 {[%emt 0:00:38]} Bd6 {[%emt 0:00:46]} 46. Ke3 {[%emt 0:00:13]} Be6 {[%emt 0:00:34]} 47. hxg6+ {[%emt 0:00:18]} Kxg6 {[%emt 0:00:02]} 48. Bf1 {[%emt 0:00:11]} Be7 {[%emt 0:00:46]} 49. Be2 {[%emt 0:01:59]} h5 {[%emt 0:00:05]} 50. Kd2 {[%emt 0:02:09]} h4 {[%emt 0:00:12]} 51. gxh4 {[%emt 0:00:03]} Bxh4 {[%emt 0:00:01]} 52. c4 {[%emt 0:02:00]} Bd8 {[%emt 0:00:03]} 53. Kc3 {[%emt 0:02:05]} Bc7 {[%emt 0:00:11]} 54. Be3 {[%emt 0:00:20]} Kf6 {[%emt 0:00:47]} 55. Kb3 {[%emt 0:00:25]} Ke7 {[%emt 0:00:08]} 56. Ka4 {[%emt 0:00:35]} Bd7+ {[%emt 0:01:05]} 57. b5 {[%emt 0:00:11]} axb5+ {[%emt 0:01:07]} 58. cxb5 {[%emt 0:00:04]} Kd8 {[%emt 0:00:17]} 59. Bc4 {[%emt 0:00:31]} Kc8 {[%emt 0:00:53]} 60. Bd5 {[%emt 0:00:07]} Bd6 {[%emt 0:00:24]} 61. Bc4 {[%emt 0:00:32]} Kb8 {[%emt 0:00:55]} 62. Kb3 {[%emt 0:00:25]} Bc7 {[%emt 0:00:51]} 63. a6 {[%emt 0:02:04]} b6 {[%emt 0:01:11]} 64. Kc3 {[%emt 0:00:51]} Ka7 {[%emt 0:00:09]} 65. Kd4 {[%emt 0:00:26]} Bd6 {[%emt 0:00:06]} 66. Kd5 {[%emt 0:00:42]} Bb4 {[%emt 0:00:18]} 67. Ke5 {[%emt 0:00:20]} Ba3 {[%emt 0:00:47]} 68. Kf6 {[%emt 0:01:13]} Bd6 {[%emt 0:00:20]} 69. Bf1 {[%emt 0:00:38]} Bb4 {[%emt 0:00:13]} 70. Be2 {[%emt 0:00:09]} Bd6 {[%emt 0:00:08]} 71. Bc4 {[%emt 0:00:09]} Bb4 {[%emt 0:00:08]} 72. Be6 {[%emt 0:01:20]} Bxb5 {[%emt 0:00:30]} 73. Kxf5 {[%emt 0:00:18]} Bd3 {[%emt 0:01:40]} 74. Bd5 {[%emt 0:00:41]} Kxa6 {[%emt 0:00:11]} 75. Bxe4 {[%emt 0:00:07]} Bxe4+ {[%emt 0:00:08]} 76. Kxe4 {[%emt 0:00:04]} Kb7 {[%emt 0:00:09]} 77. Kd5 {[%emt 0:00:06]} Kc7 {[%emt 0:00:13]} 78. f5 {[%emt 0:00:07]} Kd7 {[%emt 0:00:15]} 79. Bxb6 {[%emt 0:00:08]} Ke7 {[%emt 0:00:06]} 1/2-1/2

[Event "9th HDBank Open 2019"]
[Site "Ho Chi Minh City"]
[Date "2019.03.08"]
[Round "3.26"]
[White "Shyaamnikhil P"]
[Black "Kwon, Sehyun"]
[Result "1-0"]
[ECO "A05"]
[WhiteElo "2429"]
[BlackElo "2136"]
[Annotator "RC"]
[PlyCount "62"]
[EventDate "2019.03.07"]
[EventType "swiss"]
[EventCountry "VIE"]
[SourceTitle "playchess.com"]
[Source "ChessBase"]
[SourceQuality "1"]
[TimeControl "5400+30"]

1. Nf3 Nf6 2. g3 c5 3. Bg2 d5 4. c4 Nc6 5. cxd5 Nxd5 6. Nc3 Nc7 7. d3 e5 8. Nd2 Bd7 9. O-O Be7 10. Nc4 f6 11. f4 b5 {[%emt 0:27:27]} 12. Ne3 {[%emt 0:12:48]} exf4 {[%emt 0:06:31]} 13. gxf4 {[%emt 0:00:18]} Rc8 {[%emt 0:11:29]} 14. a4 {[%emt 0:04:20]} b4 {[%emt 0:06:56]} 15. Ne4 {[%emt 0:02:29]} O-O {[%emt 0:02:20]} 16. Nc4 {[%emt 0:03:04]} Ne8 {[%emt 0:09:37]} 17. f5 {[%emt 0:03:23]} Ne5 {[%emt 0:04:07]} 18. Qb3 {[%emt 0:07:44]} Kh8 {[%emt 0:01:00]} 19. Rf4 {[%emt 0:04:53]} Nxc4 {[%emt 0:08:33]} 20. dxc4 {[%emt 0:01:43]} Nd6 {[%emt 0:01:56]} 21. Ng3 {[%emt 0:00:34]} Nf7 {[%emt 0:00:46]} 22. Rh4 {[%emt 0:03:16]} Bd6 {[%emt 0:02:56]} 23. Qf3 {[%emt 0:03:40]} Qe8 {[%emt 0:01:17]} 24. Ne4 {[%emt 0:09:09]} Qe5 {[%emt 0:07:12]} 25. Ng3 {[%emt 0:14:31]} Ng5 {[%emt 0:04:06]} 26. Bxg5 {[%emt 0:03:47]} fxg5 {[%emt 0:04:44]} 27. Rxh7+ {[%emt 0:00:09]} Kxh7 {[%emt 0:00:02]} 28. Qh5+ {[%emt 0:00:07]} Kg8 {[%emt 0:00:02]} 29. Bd5+ {[%emt 0:00:09]} Qxd5 {[%emt 0:00:07]} 30. cxd5 {[%emt 0:00:05]} Bxg3 {[%emt 0:03:07]} 31. hxg3 {[%emt 0:00:10]} Rxf5 {[%emt 0:00:11]} 1-0

[Event "9th HDBank Open 2019"]
[Site "Ho Chi Minh City"]
[Date "2019.03.09"]
[Round "4.1"]
[White "Iturrizaga Bonelli, Eduardo"]
[Black "Gukesh D"]
[Result "1-0"]
[ECO "E71"]
[WhiteElo "2639"]
[BlackElo "2529"]
[Annotator "ChessBase"]
[PlyCount "109"]
[EventDate "2019.03.07"]
[EventType "swiss"]
[EventCountry "VIE"]
[SourceTitle "playchess.com"]
[Source "ChessBase"]
[SourceQuality "1"]
[TimeControl "5400+30"]

1. d4 {[%emt 0:00:17]} Nf6 {[%emt 0:00:00]} 2. c4 {[%emt 0:00:21]} g6 {[%emt 0:00:14]} 3. Nc3 {[%emt 0:00:30]} Bg7 {[%emt 0:00:10]} 4. e4 {[%emt 0:01:07]} d6 {[%emt 0:00:11]} 5. h3 {[%emt 0:00:06]} O-O {[%emt 0:00:40]} 6. Be3 {[%emt 0:00:03]} Na6 {[%emt 0:05:34]} 7. Nf3 {[%emt 0:04:46]} c5 {[%emt 0:08:47]} 8. Be2 {[%emt 0:03:56]} cxd4 {[%emt 0:02:16]} 9. Nxd4 {[%emt 0:00:23]} Nc5 {[%emt 0:16:56]} 10. Qc2 {[%emt 0:00:35]} b6 11. O-O-O {[%emt 0:15:49]} Bb7 {[%emt 0:05:22]} 12. f3 {[%emt 0:00:17]} Nh5 {[%emt 0:03:52]} 13. g4 {[%emt 0:01:50]} Ng3 {[%emt 0:01:06]} 14. Rhg1 {[%emt 0:03:03]} Nxe2+ {[%emt 0:00:12]} 15. Qxe2 {[%emt 0:00:04]} Rc8 {[%emt 0:01:58]} 16. h4 {[%emt 0:02:36]} Ba6 {[%emt 0:07:02]} 17. Kb1 {[%emt 0:01:15]} Na4 {[%emt 0:25:32]} 18. Ncb5 {[%emt 0:09:54]} d5 {[%emt 0:02:23]} 19. exd5 {[%emt 0:03:57]} Bxb5 {[%emt 0:00:58]} 20. cxb5 {[%emt 0:01:53]} Qxd5 {[%emt 0:00:13]} 21. Nf5 {[%emt 0:00:20]} Qc4 {[%emt 0:08:27]} 22. Qxc4 {[%emt 0:03:41]} Rxc4 {[%emt 0:00:02]} 23. Nxg7 {[%emt 0:00:40]} Kxg7 {[%emt 0:00:09]} 24. Rd7 {[%emt 0:00:13]} e5 {[%emt 0:04:20]} 25. Rc1 {[%emt 0:14:32]} Rb4 {[%emt 0:00:57]} 26. b3 {[%emt 0:00:07]} Rxb5 {[%emt 0:02:17]} 27. Rxa7 {[%emt 0:00:04]} Nc5 {[%emt 0:00:15]} 28. Bxc5 {[%emt 0:00:21]} bxc5 {[%emt 0:00:02]} 29. Rc7 {[%emt 0:00:26]} Rb4 {[%emt 0:00:15]} 30. R7xc5 {[%emt 0:03:56]} Rf4 {[%emt 0:00:01]} 31. Rxe5 {[%emt 0:00:28]} Rxf3 {[%emt 0:00:05]} 32. Re4 {[%emt 0:00:03]} Rh3 {[%emt 0:03:07]} 33. g5 {[%emt 0:00:35]} h6 {[%emt 0:01:08]} 34. Kb2 {[%emt 0:01:41]} hxg5 {[%emt 0:00:51]} 35. hxg5 {[%emt 0:00:05]} Rg3 {[%emt 0:00:03]} 36. Re5 {[%emt 0:00:48]} Rb8 {[%emt 0:00:32]} 37. Rc3 {[%emt 0:01:20]} Rg2+ {[%emt 0:00:09]} 38. Rc2 {[%emt 0:00:02]} Rg3 {[%emt 0:00:04]} 39. Ra5 {[%emt 0:00:43]} Rb7 {[%emt 0:01:13]} 40. Ka3 {[%emt 0:00:36]} Rb8 {[%emt 0:00:36]} 41. Rc4 {[%emt 0:01:31]} Rg2 {[%emt 0:00:21]} 42. b4 {[%emt 0:02:42]} Re8 {[%emt 0:00:38]} 43. Kb3 {[%emt 0:00:07]} Ree2 {[%emt 0:00:25]} 44. a3 {[%emt 0:00:06]} Rb2+ {[%emt 0:00:14]} 45. Ka4 {[%emt 0:00:14]} Rg3 {[%emt 0:00:13]} 46. Rcc5 {[%emt 0:00:38]} Rbb3 {[%emt 0:01:09]} 47. Kb5 {[%emt 0:00:04]} Rxa3 {[%emt 0:00:04]} 48. Rxa3 {[%emt 0:00:06]} Rxa3 {[%emt 0:00:03]} 49. Kc6 {[%emt 0:00:21]} f6 {[%emt 0:01:00]} 50. gxf6+ {[%emt 0:00:44]} Kxf6 {[%emt 0:00:01]} 51. b5 {[%emt 0:00:04]} Ke7 {[%emt 0:01:54]} 52. b6 {[%emt 0:00:18]} Ra6 {[%emt 0:00:30]} 53. Kc7 {[%emt 0:00:15]} Kf6 {[%emt 0:00:34]} 54. b7 {[%emt 0:00:08]} Ra7 {[%emt 0:00:03]} 55. Kb6 {[%emt 0:00:04]} 1-0